Cogmind - Beta 13 @@@ ROGUE MODE // 2024.06.26 @ 21:18:40 Player: Minty Result: Destroyed by G-47 Trooper with Particle Gun Performance ------------- Evolutions (2) 1000 Regions Visited (7) 1400 Robots Destroyed (105) 525 Value Destroyed (3156) 3156 Prototype IDs (44) 880 Alien Tech Used (0) 0 Bonus (236) 236 TOTAL SCORE: 7197 Bonus ------- Follower Combat Kills 70 Aligned with FarCom 300 Friendly Fire -134 Cogmind --------- Core Integrity 0/550 Matter 247/300 Energy 150/150 System Corruption 1% Temperature Cool (71) Movement Walking (120) Location -8/Storage Parts ------- > --- POWER (1) -------- Micro Nuclear Core > --- PROPULSION (2) --- Carbon-fiber Leg Carbon-fiber Leg > --- UTILITY (5) ------ Small Storage Unit Advanced Visual Processing Unit Hacking Suite Hacking Suite Hacking Suite > --- WEAPON (3) ------- Enhanced Autogun Gauss Rifle > --- INVENTORY (8) ---- Medium Matter Pod (0) Improved Terrain Scanner Improved Terrain Scan Processor ECM Suite Guided Plasma Cannon Gauss Rifle Advanced EMP Blaster Advanced EMP Blaster Peak State ------------ > --- POWER ------------ Micro Nuclear Core > --- PROPULSION ------- Carbon-fiber Leg Titanium Leg > --- UTILITY ---------- Small Storage Unit Advanced Visual Processing Unit Hacking Suite Hacking Suite Hacking Suite > --- WEAPON ----------- Enhanced Autogun Gauss Rifle Gauss Rifle > --- INVENTORY -------- Medium Matter Pod Improved Terrain Scanner Improved Terrain Scan Processor ECM Suite Guided Plasma Cannon Gauss Rifle Advanced EMP Blaster Advanced EMP Blaster [Rating: 37] Favorites ----------- Power Ion Engine Engine Ion Engine Power Core Micro Nuclear Core Propulsion Aluminum Leg Leg Aluminum Leg Wheel Wheel Utility Hacking Suite Device Improved Terrain Scanner Storage Small Storage Unit Processor Improved Targeting Computer Hackware Hacking Suite Weapon Shotgun Energy Gun Pulse Rifle Energy Cannon Advanced Beam Cannon Ballistic Gun Shotgun Ballistic Cannon Flak Cannon Launcher Improved Grenade Launcher Build | -11 -10 -9 -9 -9 -8 -8 -8 ------- Run | Yrd Mat Mat Min Exi Min Mat Sto Slots Evolved 4 | . . 2 . . . 2 . Power . | . . . . . . . . Propulsion . | . . . . . . . . Utility 3 | . . 1 . . . 2 . Weapon 1 | . . 1 . . . . . Parts Attached 81 | . 4 14 6 . 1 37 19 Power 10 | . . 2 . . 1 5 2 Engine 5 | . . 2 . . 1 1 1 Core 5 | . . . . . . 4 1 Reactor . | . . . . . . . . Propulsion 18 | . 1 . 2 . . 13 2 Treads . | . . . . . . . . Leg 15 | . 1 . 2 . . 10 2 Wheel 3 | . . . . . . 3 . Hover . | . . . . . . . . Flight . | . . . . . . . . Utility 18 | . 2 1 4 . . 9 2 Device 8 | . 1 . 3 . . 4 . Storage 1 | . . . 1 . . . . Processor 5 | . 1 . . . . 3 1 Hackware 4 | . . 1 . . . 2 1 Protection . | . . . . . . . . Artifact . | . . . . . . . . Weapon 35 | . 1 11 . . . 10 13 Energy Gun 5 | . . 2 . . . 1 2 Energy Cannon 1 | . . . . . . . 1 Ballistic Gun 23 | . 1 9 . . . 5 8 Ballistic Cannon 2 | . . . . . . 2 . Launcher 4 | . . . . . . 2 2 Special Weapon . | . . . . . . . . Impact Weapon . | . . . . . . . . Slashing Weapon . | . . . . . . . . Piercing Weapon . | . . . . . . . . Special Melee Weapon . | . . . . . . . . Unidentified Prototypes 6 | . . 1 . . . 1 4 Parts Lost 22 | . . 3 . . . 18 1 Power 5 | . . 1 . . . 4 . Propulsion 6 | . . . . . . 6 . Utility 2 | . . 1 . . . 1 . Weapon 9 | . . 1 . . . 7 1 Highest Loss Streak 4 | . . 2 . . . 4 1 To Critical Strikes . | . . . . . . . . Average Slot Usage (%) 95 | . 96 98 94 100 100 92 99 Engine 6 | . 14 11 11 11 11 2 . Core 2 | . . . . . . 3 8 Leg 18 | . 28 22 22 22 22 12 18 Wheel 1 | . . . . . . 4 . Device 5 | . 2 . 5 11 11 6 2 Storage 10 | . 14 11 11 11 11 9 9 Processor 6 | . 7 11 . . . 8 8 Hackware 15 | . . 11 11 11 11 19 25 Energy Gun 1 | . . 5 . . . 2 . Ballistic Gun 24 | . 28 26 33 33 33 13 26 Ballistic Cannon 1 | . . . . . . 5 . Naked Turns . | . . . . . . . . Heaviest Build 27 | 12 13 21 21 20 20 27 24 Greatest Support 32 | 20 20 20 20 20 20 30 32 Greatest Overweight (x) 4 | . . 1 1 . . 4 . Average Overweight (x) . | . . . . . . . . Largest Inventory Capacity 8 | . 8 8 8 8 8 8 8 Average Capacity 8 | . 8 8 8 8 8 8 8 Most Carried 8 | . 8 8 8 8 8 8 8 Average Carried 7 | . 7 7 7 7 7 7 7 Final Capacity 8 | 8 8 8 8 8 8 8 8 Final Carried 8 | 6 8 8 8 8 8 8 8 Class Distribution -------------------- 41% | Hacker-Skirmisher 20% | Scavenger-Skirmisher 18% | Gunner 6% | Mutant 5% | Hacker-Mutant 3% | Skirmisher 3% | Scavenger-Gunner Dominant Class ---------------- Mutant | -10/Materials Gunner | -9/Materials Gunner | -9/Mines Scavenger-Skirmisher | -9/Exiles Scavenger-Skirmisher | -8/Mines Hacker-Skirmisher | -8/Materials Hacker-Skirmisher | -8/Storage Resources | -11 -10 -9 -9 -9 -8 -8 -8 ----------- Run | Yrd Mat Mat Min Exi Min Mat Sto Matter Collected 2810 | 200 168 237 485 . 10 1074 636 Remotely . | . . . . . . . . Salvage Created 3724 | . 292 690 429 . . 1357 956 Parts 213 | . 11 43 28 . . 81 50 Haulers Intercepted 3 | . . . . . . 2 1 Recyclers Shooed 2 | . 1 . . . . 1 . Parts Field Recycled . | . . . . . . . . Retrieved Matter . | . . . . . . . . Parts Self-Destructed . | . . . . . . . . Prevented . | . . . . . . . . Kills | -11 -10 -9 -9 -9 -8 -8 -8 ------- Run | Yrd Mat Mat Min Exi Min Mat Sto Combat Hostiles Destroyed 69 | . 6 10 10 . . 33 10 Guns 49 | . 6 10 10 . . 17 6 Cannons 8 | . . . . . . 8 . AOE 12 | . . . . . . 8 4 Classes Destroyed 13 | . 3 5 . . . 5 . Worker 9 | . 1 2 . . . 3 3 Builder 4 | . . 1 . . . 1 2 Tunneler 5 | . . 1 4 . . . . Hauler 3 | . . . . . . 2 1 Recycler 7 | . . 2 . . . 2 3 Operator 3 | . 1 1 . . . . 1 Watcher 4 | . . 1 . . . 3 . Swarmer 7 | . . . . . . 7 . Cutter 1 | . . . . . . 1 . Grunt 49 | . 6 7 10 . . 18 8 Brawler 1 | . . . . . . 1 . Sentry 11 | . . 3 . . . 6 2 Hunter 1 | . . . . . . 1 . Best Kill Streak 10 | . 3 6 8 . . 10 6 Combat Bots Only 9 | . 3 3 6 . . 9 3 Max Kills in Single Turn 3 | . 1 2 2 . . 3 3 Gunslinging 1 | . . . 1 . . . . Exploded 3 | . . . . . . 3 3 Melee . | . . . . . . . . Uniques/NPCs Destroyed . | . . . . . . . . Combat | -11 -10 -9 -9 -9 -8 -8 -8 -------- Run | Yrd Mat Mat Min Exi Min Mat Sto Hostile Shots Fired 345 | . 53 51 25 . . 150 66 Missed 113 | . 19 19 7 . . 49 19 Damage Taken 3628 | . 377 419 201 . . 1892 739 Core 714 | . 34 74 47 . . 366 193 Absorbed by Shields . | . . . . . . . . Core Remaining (%) 85 | 100 86 . . . 69 . . Volleys Fired 224 | . 39 34 23 . . 85 43 Largest 3 | . 2 3 3 . . 3 3 Hottest 140 | . 40 140 69 . . 113 92 Shots Fired 561 | . 78 92 69 . . 196 126 Gun 496 | . 78 92 69 . . 137 120 Cannon 46 | . . . . . . 46 . Launcher 19 | . . . . . . 13 6 Special . | . . . . . . . . Kinetic 503 | . 78 80 69 . . 156 120 Thermal 39 | . . 12 . . . 27 . Explosive 5 | . . . . . . 5 . Electromagnetic 14 | . . . . . . 8 6 Robot Hit Streak 19 | . 11 19 7 . . 15 6 Robot Miss Streak 6 | . 4 3 5 . . 6 5 Penetration Max 1 | . . . . . . . 1 Secondary Targets 6 | . 1 . 3 . . 2 . Max Gunslinging Chain 1 | . 1 . 1 . . 1 . Shots Hit Robots 365 | . 54 62 48 . . 136 65 Core Hits 202 | . 18 31 27 . . 97 29 Critical Kills . | . . . . . . . . Critical Parts Destroyed 1 | . 1 . . . . . . Critical Strikes 2 | . 1 . . . . 1 . Destroy 1 | . 1 . . . . . . Blast 1 | . . . . . . 1 . Melee Attacks . | . . . . . . . . Impact . | . . . . . . . . Slashing . | . . . . . . . . Piercing . | . . . . . . . . Sneak Attacks . | . . . . . . . . Combat Hostiles . | . . . . . . . . Follow-up Attacks . | . . . . . . . . Damage Inflicted 7473 | . 524 845 800 . . 3507 1797 Guns 5065 | . 524 843 763 . . 1518 1417 Cannons 714 | . . . . . . 714 . Explosions 1623 | . . . . . . 1269 354 Melee . | . . . . . . . . Ramming 71 | . . 2 37 . . 6 26 Kinetic 5337 | . 524 712 763 . . 1921 1417 Thermal 500 | . . 131 . . . 332 37 Explosive 943 | . . . . . . 943 . Electromagnetic 622 | . . . . . . 305 317 Impact . | . . . . . . . . Slashing . | . . . . . . . . Piercing . | . . . . . . . . Highest Corruption 1 | . . . . . . 1 1 Average Corruption 1 | . . . . . . 1 1 Corruption Purged . | . . . . . . . . Corruption Blocked . | . . . . . . . . Effects 7 | . . . . . . 4 3 Message Errors 2 | . . . . . . 1 1 Matter Fused 3 | . . . . . . 2 1 Energy Discharges 1 | . . . . . . 1 . Parts Rejected 1 | . . . . . . . 1 Overload Shots . | . . . . . . . . Overflow Damage 90 | . . . . . . 86 4 Projectiles . | . . . . . . . . Explosions 90 | . . . . . . 86 4 Melee . | . . . . . . . . Knockbacks 10 | . . . . . . 10 . Impact . | . . . . . . . . Kinetic 9 | . . . . . . 9 . Secondary 1 | . . . . . . 1 . Self-Inflicted Damage 378 | . . . . . . 378 . Shots 10 | . . . . . . 10 . Rammed . | . . . . . . . . Targets Rammed 19 | . . 3 6 . . 2 8 Kicked 19 | . . 3 6 . . 2 8 Crushed . | . . . . . . . . Highest Temperature 361 | . 18 240 36 . . 361 159 Average Temperature 51 | . 7 47 13 . . 65 53 Received Heat Transfer 1734 | . 204 216 108 . . 729 477 Effects 2 | . . . . . . 2 . Shutdowns 1 | . . . . . . 1 . Damage (minor) 1 | . . . . . . 1 . Siege Activations . | . . . . . . . . Robots Corrupted 1 | . . . . . . 1 . Combat Hostiles . | . . . . . . . . Parts Fried 5 | . . . . . . 5 . Impact Corruptions . | . . . . . . . . Robots Melted . | . . . . . . . . Combat Hostiles . | . . . . . . . . Parts Melted 2 | . . . . . . 2 . Heat Transferred 1062 | . . 296 . . . 716 50 Parts Sabotaged . | . . . . . . . . Parts Stolen . | . . . . . . . . Parts Stripped . | . . . . . . . . Power Chain Reactions 4 | . . . . . . 2 2 Alert | -11 -10 -9 -9 -9 -8 -8 -8 ------- Run | Yrd Mat Mat Min Exi Min Mat Sto Peak Influence 441 | . 214 441 205 . . 379 391 Initial 152 | . . 90 113 . . . 152 Average 176 | . 77 260 110 . . 193 263 Maximum Alert Level 2 | . 1 2 1 . . 1 1 Low Security (%) 57 | . 94 30 93 . 100 46 22 Level 1 41 | . 5 57 6 . . 53 77 Level 2 1 | . . 12 . . . . . Level 3 . | . . . . . . . . Level 4 . | . . . . . . . . Level 5 . | . . . . . . . . High Security . | . . . . . . . . Max Security . | . . . . . . . . Squads Dispatched 17 | . 4 3 1 . . 7 2 Investigation 13 | . 3 3 . . . 6 1 Extermination . | . . . . . . . . Reinforcement 4 | . 1 . 1 . . 1 1 Assault . | . . . . . . . . Garrison . | . . . . . . . . Intercept . | . . . . . . . . Searches Triggered . | . . . . . . . . Construction Impeded 1 | . . . 1 . . . . Haulers Reinforced . | . . . . . . . . Active Scanning Responses . | . . . . . . . . Cargo Convoy Interrupts . | . . . . . . . . Stealth | -11 -10 -9 -9 -9 -8 -8 -8 --------- Run | Yrd Mat Mat Min Exi Min Mat Sto Distress Signals 10 | . 1 1 3 . . 4 1 Communications Jammed . | . . . . . . . . Distress Signals . | . . . . . . . . Times Spotted 96 | . 9 15 9 . . 48 15 Peak Tracking Total 5 | . 4 4 3 . . 5 3 Tactical Retreats 4 | . . . 1 . . 3 . Traps | -11 -10 -9 -9 -9 -8 -8 -8 ------- Run | Yrd Mat Mat Min Exi Min Mat Sto Traps Triggered 1 | . . . . . . 1 . Indirectly 1 | . . . . . . 1 . Trap Hack Attempts . | . . . . . . . . Triggered . | . . . . . . . . Disarmed . | . . . . . . . . Reprogrammed . | . . . . . . . . Reused . | . . . . . . . . Traps Extracted . | . . . . . . . . Installed . | . . . . . . . . Triggered . | . . . . . . . . Objects Rigged 2 | . . . . . . 2 . Exploded 2 | . . . . . . 2 . Machines | -11 -10 -9 -9 -9 -8 -8 -8 ---------- Run | Yrd Mat Mat Min Exi Min Mat Sto Machines Disabled 15 | . . . . . . 9 6 Max in Single Turn 4 | . . . . . . 4 1 Machines Repaired . | . . . . . . . . Machines Dismantled . | . . . . . . . . Machines Sabotaged 1 | . . . . . . 1 . Overloaded Fab Kills . | . . . . . . . . Hacking | -11 -10 -9 -9 -9 -8 -8 -8 --------- Run | Yrd Mat Mat Min Exi Min Mat Sto Machines Accessed 27 | . 5 4 . 2 . 9 7 Terminals 20 | . 4 2 . . . 8 6 Fabricators . | . . . . . . . . Repair Stations . | . . . . . . . . Recycling Units 3 | . 1 1 . . . . 1 Scanalyzers 1 | . . 1 . . . . . Garrison Access 1 | . . . . . . 1 . Total Hacks 92 | . 22 16 . 2 . 37 15 Successful 60 | . 11 13 . 2 . 23 11 Failed 31 | . 11 3 . . . 13 4 Catastrophic 3 | . 2 . . . . 1 . Database Lockouts 1 | . . . . . . 1 . Manual 52 | . 17 7 . 1 . 19 8 Terminals 74 | . 18 8 . . . 35 13 Fabricators . | . . . . . . . . Repair Stations . | . . . . . . . . Recycling Units 9 | . 4 3 . . . . 2 Scanalyzers 5 | . . 5 . . . . . Garrison Access 2 | . . . . . . 2 . Terminal Hacks 40 | . 8 3 . 2 . 18 9 Record 1 | . . . . 1 . . . Robot Schematic 1 | . 1 . . . . . . Robot Analysis 5 | . 2 1 . . . . 2 Prototype ID Bank 11 | . 1 . . . . 9 1 Open Door 4 | . . . . . . . 4 Branch Access Points 2 | . . . . . . 1 1 Emergency Access Points 1 | . . . . . . 1 . Repair Station Index 1 | . 1 . . . . . . Alert Level 2 | . 1 . . . . 1 . Unreport Threat 4 | . . . . . . 4 . Locate Traps 2 | . . 1 . . . . 1 Patrol Status 1 | . . . . . . 1 . Investigation Status 1 | . 1 . . . . . . Recall Investigation 1 | . . . . . . 1 . Zone Layout 2 | . 1 1 . . . . . Derelict Proto ID Bank 1 | . . . . 1 . . . Fabricator Hacks . | . . . . . . . . Repair Station Hacks . | . . . . . . . . Recycling Unit Hacks 6 | . 2 2 . . . . 2 Report Inventory 3 | . 1 1 . . . . 1 Retrieve Components 3 | . 1 1 . . . . 1 Scanalyzer 4 | . . 4 . . . . . Insert Component 2 | . . 2 . . . . . Analyze 2 | . . 2 . . . . . Garrison Access Hacks . | . . . . . . . . Unauthorized Hacks 10 | . 1 4 . . . 5 . Terminals 8 | . 1 3 . . . 4 . Track 1 | . . 1 . . . . . Botnet 5 | . 1 2 . . . 2 . Detonate 1 | . . . . . . 1 . Sabotage 1 | . . . . . . 1 . Fabricators . | . . . . . . . . Repair Stations . | . . . . . . . . Recycling Units . | . . . . . . . . Scanalyzers 1 | . . 1 . . . . . Extract 1 | . . 1 . . . . . Garrison Access 1 | . . . . . . 1 . Reprogram 1 | . . . . . . 1 . Data Cores Recovered 1 | . . 1 . . . . . Used 1 | . . 1 . . . . . Hacking Detections 21 | . 5 4 . . . 8 4 Full Trace Events 11 | . 3 2 . . . 5 1 Feedback Events . | . . . . . . . . Feedback Blocked . | . . . . . . . . Robot Schematics Acquired 1 | . 1 . . . . . . Robots Built . | . . . . . . . . Authchips . | . . . . . . . . Time . | . . . . . . . . Total Robot Build Rating . | . . . . . . . . Part Schematics Acquired 3 | . . 3 . . . . . Parts Built . | . . . . . . . . Authchips . | . . . . . . . . Time . | . . . . . . . . Total Part Build Rating . | . . . . . . . . Parts Repaired . | . . . . . . . . Time . | . . . . . . . . Parts Recycled . | . . . . . . . . Recycled Matter . | . . . . . . . . Retrieved Matter . | . . . . . . . . Retrieved Components 21 | . 2 10 . . . . 9 Parts Scanalyzed 2 | . . 2 . . . . . Part Schematics Acquired 2 | . . 2 . . . . . Parts Damaged . | . . . . . . . . Bothacking | -11 -10 -9 -9 -9 -8 -8 -8 ------------ Run | Yrd Mat Mat Min Exi Min Mat Sto Used RIF Installer . | . . . . . . . . Robots Hacked . | . . . . . . . . Non-combat . | . . . . . . . . Combat . | . . . . . . . . Robot Hacks Applied . | . . . . . . . . Relay Couplers Released . | . . . . . . . . Fabnet Peak Effective % . | . . . . . . . . Robots Rewired . | . . . . . . . . Allies Hacked . | . . . . . . . . Hacks Repelled . | . . . . . . . . Allies | -11 -10 -9 -9 -9 -8 -8 -8 -------- Run | Yrd Mat Mat Min Exi Min Mat Sto Total Allies 3 | . . . . . . 3 . Largest Group 3 | . . . . . . 3 . Highest-Rated Group 75 | . . . . . . 75 . Highest-Rated Ally 25 | . . . . . . 25 . Total Orders . | . . . . . . . . Ally Attacks 15 | . . . . . . 15 . Total Damage 287 | . . . . . . 287 . Kills 3 | . . . . . . 3 . Allies Corrupted . | . . . . . . . . Allies Melted . | . . . . . . . . Intel | -11 -10 -9 -9 -9 -8 -8 -8 ------- Run | Yrd Mat Mat Min Exi Min Mat Sto Robot Analysis Total 5 | . 2 1 . . . . 2 Derelict Logs Recovered . | . . . . . . . . Drone Launches . | . . . . . . . . Drone Recoveries . | . . . . . . . . Exploration | -11 -10 -9 -9 -9 -8 -8 -8 ------------- Run | Yrd Mat Mat Min Exi Min Mat Sto Turns Passed 4117 | . 294 452 906 261 161 1411 632 Spaces Moved 2179 | 1 147 224 306 216 131 796 358 Core 3 | . . . . . . 3 . Treads . | . . . . . . . . Legs 1907 | 1 147 224 306 216 131 524 358 Wheels 269 | . . . . . . 269 . Hover . | . . . . . . . . Flight . | . . . . . . . . Fastest Speed 90 | 120 120 120 120 120 120 90 120 Average Speed 122 | 120 120 121 124 120 120 123 124 Slowest Speed 260 | 120 120 190 190 120 120 260 125 Overloaded Moves . | . . . . . . . . Propulsion Burnouts . | . . . . . . . . Robots Hopped . | . . . . . . . . Cave-ins Triggered . | . . . . . . . . Exploration Rate (%) 44 | 2 31 24 62 60 52 74 49 Regions Visited 7 Branch Regions 4 Pre-discovered Areas 1 | . . . . 1 . . . Known Exits Taken 1 | . . . . . . 1 . Unknown Exits Taken 6 | 1 1 1 1 1 1 . . Scrap Searched 1 | . . . . . 1 . . Spaces Dug . | . . . . . . . . Terrain Destroyed 103 | . . . . . . 96 7 Melee . | . . . . . . . . Projectile 4 | . . . . . . 2 2 AOE 99 | . . . . . . 94 5 Terrain Rammed . | . . . . . . . . Walls Destroyed . | . . . . . . . . Machines Disabled . | . . . . . . . . Actions | -11 -10 -9 -9 -9 -8 -8 -8 --------- Run | Yrd Mat Mat Min Exi Min Mat Sto Total 3197 | . 198 339 780 218 136 1067 459 Wait 611 | . . 54 436 1 . 119 1 Move 2172 | . 146 223 305 215 130 795 358 Hop . | . . . . . . . . Pick Up 27 | . 4 2 . 1 2 11 7 Fast Attach 38 | . 2 5 1 . . 18 12 Attach 15 | . . 3 1 . . 11 . Detach 10 | . . . 1 . . 6 3 Swap 28 | . 2 6 4 . 1 8 7 Drop 53 | . 5 9 3 1 3 12 20 Fire 224 | . 39 34 23 . . 85 43 Melee . | . . . . . . . . Ram . | . . . . . . . . Kick 19 | . . 3 6 . . 2 8 Crush . | . . . . . . . . Escape Stasis . | . . . . . . . . Rewire . | . . . . . . . . Trap . | . . . . . . . . Miscellaneous . | . . . . . . . . Route ------- -11/Scrapyard -10/Materials -9/Materials -9/Mines -9/Exiles -8/Mines -8/Materials (discovered 2 exits: [*Fac] / *Sto) -8/Storage (discovered 1 exit: Rec) History --------- Turn | Location | Event 1 | -11/Scrapyard | Discovered new exit (range 0) 1 | -11/Scrapyard | Entered Materials 205 | -10/Materials | Discovered new exit (range 6) 295 | -10/Materials | Entered another Materials area 295 | -9/Materials | Evolved 2 slots: Utility x1, Weapon x1 709 | -9/Materials | Discovered new exit (range 10) 747 | -9/Materials | Entered Mines 776 | -9/Mines | Excavation squad dispatched 776 | -9/Mines | A large section of the Mines collapsed 993 | -9/Mines | Build established: Gunner 1026 | -9/Mines | Excavation squad dispatched 1276 | -9/Mines | Excavation squad dispatched 1526 | -9/Mines | Excavation squad dispatched 1648 | -9/Mines | Deemed a non-threat by the Exiles lab entrance 1648 | -9/Mines | Discovered new exit (range 5) 1653 | -9/Mines | Entered Exiles 1666 | -9/Exiles | Build established: Scavenger-Skirmisher 1684 | -9/Exiles | Met 8R-AWN 1704 | -9/Exiles | Met EX-HEX 1736 | -9/Exiles | Met EX-BIN 1752 | -9/Exiles | Aligned with FarCom system 1753 | -9/Exiles | Given EX-Vault access code 1783 | -9/Exiles | Opened EX-Vault 1793 | -9/Exiles | Found Gui. Plasma Cannon 1818 | -9/Exiles | Warned to stay clear of 0b10 Research branches 1856 | -9/Exiles | Met EX-DEC 1862 | -9/Exiles | Learned location of Zion (-7) 1901 | -9/Exiles | Discovered new exit (range 11) 1914 | -9/Exiles | Left Exiles lab with Gui. Plasma Cannon 1914 | -9/Exiles | Entered Mines 2042 | -8/Mines | Discovered new exit (range 15) 2075 | -8/Mines | Entered Materials 2075 | -8/Materials | Evolved 2 slots: Utility x2 2344 | -8/Materials | Build established: Hacker-Skirmisher 2440 | -8/Materials | Lost 3 parts (1n2w) 2596 | -8/Materials | Identified exit to Storage 2767 | -8/Materials | Lost 3 parts (1n2w) 2770 | -8/Materials | Destroyed 9 combat bots 3062 | -8/Materials | Discovered new exit (range 10) 3074 | -8/Materials | Central database locked down 3112 | -8/Materials | Core integrity fell below 50% 3207 | -8/Materials | Lost 4 parts (1p2n1w) 3429 | -8/Materials | Lost 3 allies 3486 | -8/Materials | Entered Storage 3903 | -8/Storage | Core integrity fell below 20% 4096 | -8/Storage | Identified exit to Recycling 4118 | -8/Storage | Destroyed by G-47 Trooper with Particle Gun Last Messages --------------- Retrieving 9 components... Corrupted Particle Gun Med. Storage Unit Lgt. Ion Engine Com. Wheel Corrupted Authchip [R/Combat] Corrupted Aluminum Leg Faulty Imp. Flight Unit Sml. Storage Unit Hvy. Assault Rifle 04102_ Slug penetrates G-47 Trooper. 04105_ O-16 Technician: "IFF HANDSHAKE FAILED. SECURING TERMINAL." 04105_ Slug penetrates Wall. 04105_ Slug penetrates G-47 Trooper. 04114_ Kicked G-47 Trooper. 04114_ Critical hit (Burn: +37). 04115_ Gauss Rifle destroyed. 04115_ Kicked G-47 Trooper. 04116_ Transfer Shaft disabled. 04117_ Kicked G-47 Trooper out of the way. Map ----- +----------------------------------------------------+ | ???????????????????????????????? | | ???????????????????????????????? | | ???????????????????????????????? | | ???????????????????????????????? | | ???????????????????????????????? | | ????????????? ??????????????? | | ????????????? ??????????????? | | ????????????# #?????????????? | | ????????Y???# #?????????????? | | ???# ???????# #?????????????? | | ???# ???????# #? ???????????? | | ???# ??????# # ???#######?? | | ???T ?????# # ????#]]] ]??? | | ???# ?????+ [=a?????#]]] ]??? | | ???# ?????# !%#?????? ???? | | ???# ?????# [=#??????? ???? | | ???# ?????+ #?????##" "##?? | | ???# ?????# #?????# T#?? | | ???# ###### #?????# ##?? | | ???# ##########+#### | | ???# ^^ # # *=[ | | ???#^ """o^ # # ! | | ???# """ # " / = | | ???# "" # "!"""" # | | ???# gg!![[= # "/"??" # | | ???# g@ *!== + "!"??" ###### | | ???# #"Y"#T##### """??" #????? | | ???# #"""###???# ???" #????? | | ???# ?#####?????# ? #????? | | ???# ???????????##########????? | | ???# ??????????????????????????? | | ???# ??????????????????????????? | | ???#???????????????????????????? | | ???????????????????????????????? | | ???????????????????????????????? | | ???????????????????????????????? | | ???????????????????????????????? | | ???????????????????????????????? | | | | | | | | | | | | | | | | | | | | | | | | | +----------------------------------------------------+ Best States ------------- Heat Dissipation 35 Energy Generation 15 Energy Capacity 280 Matter Stores 300 Matter Capacity 400 Sight Range 20 Robot Scan Range 15 Terrain Scan Range 16 Terrain Scan Density 110 ECM Strength 1 Evasion (%) 55 Targeting Accuracy 6 Offensive Hacking 30 Item Schematics ----------------- ECM Suite | -9/Materials | Scanalyzed Sensor Array | -9/Materials | Scanalyzed Lgt. Treads | -9/Materials | Extracted Robot Schematics ------------------ O-16 Technician | -10/Materials | Hacked Fabricated ------------ Nothing Alien Tech Used ----------------- None Achievements -------------- None Challenges ------------ None Game ------ Seed HardenedBeamMapper Manual? 0 Play Time 00:28:15 Cumulative 777.9 hours Start 2024.06.24 @ 14:06:04 End 2024.06.26 @ 21:18:40 Sessions 9 Manual Loads 0 Difficulty Rogue Special Mode None Game No. 883 Rogue 605 Adventurer 124 Explorer 154 Win Type - Total 31 Types 25/0/4/1/0/0/0/1/0 Lore% 84 Gallery% 92 Achievement% 77 Wizard Run 0 Options --------- Layout 0 ASCII 0 Keyboard 1 Movement Numpad Keybinds 0 Fullscreen 2 Font 18/Terminus Map View 76x50 Zoom Use 0% Tactical HUD 1 Map Filters NONE Filters NONE Steam 1 RUN: 1ade4918-7194-4bde-b417-7213aac63510